[Event "Early-Titled-Tuesday-Blitz-September-12-2023"]
[Site "Chess.com"]
[Date "2023.09.12"]
[Round "2"]
[White "LoydBlankenship"]
[Black "HeinichessPY"]
[Result "1-0"]
[WhiteElo "2637"]
[BlackElo "2343"]
[TimeControl "180+1"]
[EndTime "8:19:53 PDT"]
[Termination "LoydBlankenship won by checkmate"]

1. e4 {[%clk 0:02:58.6]} 1... c5 {[%clk 0:03:00.4]} 2. Nf3 {[%clk 0:02:58]} 2...
Nc6 {[%clk 0:03:01]} 3. d4 {[%clk 0:02:58.5]} 3... cxd4 {[%clk 0:03:01.9]} 4.
Nxd4 {[%clk 0:02:59.3]} 4... g6 {[%clk 0:03:02.4]} 5. Nb3 {[%clk 0:02:58.9]}
5... Bg7 {[%clk 0:03:02.3]} 6. c3 {[%clk 0:02:59.4]} 6... Nf6 {[%clk 0:03:02.5]}
7. Bd3 {[%clk 0:03:00]} 7... O-O {[%clk 0:03:02.1]} 8. O-O {[%clk 0:02:59.8]}
8... d5 {[%clk 0:02:58.7]} 9. exd5 {[%clk 0:03:00.1]} 9... Qxd5 {[%clk
0:02:54.1]} 10. Qc2 {[%clk 0:02:53.5]} 10... Be6 {[%clk 0:02:41.8]} 11. Bf4
{[%clk 0:02:50.7]} 11... Rac8 {[%clk 0:02:39.6]} 12. N1d2 {[%clk 0:02:50]} 12...
Nb4 {[%clk 0:02:36.2]} 13. cxb4 {[%clk 0:02:50.4]} 13... Rxc2 {[%clk 0:02:33.5]}
14. Bxc2 {[%clk 0:02:51.3]} 14... Bf5 {[%clk 0:02:29]} 15. Bd1 {[%clk
0:02:50.2]} 15... Ne4 {[%clk 0:02:13.4]} 16. Bf3 {[%clk 0:02:46.2]} 16... Qe6
{[%clk 0:01:52.6]} 17. Rfe1 {[%clk 0:02:44.5]} 17... Nxd2 {[%clk 0:01:51]} 18.
Rxe6 {[%clk 0:02:43.5]} 18... Nxf3+ {[%clk 0:01:51.3]} 19. gxf3 {[%clk
0:02:43.7]} 19... Bxe6 {[%clk 0:01:51.6]} 20. Be3 {[%clk 0:02:42.5]} 20... Bxb2
{[%clk 0:01:51.8]} 21. Rb1 {[%clk 0:02:41.2]} 21... Bc3 {[%clk 0:01:42.9]} 22.
Bxa7 {[%clk 0:02:16.5]} 22... Ra8 {[%clk 0:01:37.8]} 23. Bd4 {[%clk 0:02:14.9]}
23... Bxb4 {[%clk 0:01:24.4]} 24. Nc5 {[%clk 0:02:12.8]} 24... Bxc5 {[%clk
0:01:20.9]} 25. Bxc5 {[%clk 0:02:13.7]} 25... Rxa2 {[%clk 0:01:20.8]} 26. Rxb7
{[%clk 0:02:12.5]} 26... Bh3 {[%clk 0:00:54.7]} 27. Bd4 {[%clk 0:01:47.1]} 27...
Rc2 {[%clk 0:00:43.2]} 28. Rb8+ {[%clk 0:01:43.5]} 28... Rc8 {[%clk 0:00:43.6]}
29. Rb1 {[%clk 0:01:42.4]} 29... f6 {[%clk 0:00:43.6]} 30. f4 {[%clk 0:01:42]}
30... Kf7 {[%clk 0:00:34.1]} 31. Re1 {[%clk 0:01:40.1]} 31... Rc4 {[%clk
0:00:32.6]} 32. Be3 {[%clk 0:01:39.5]} 32... h6 {[%clk 0:00:24.6]} 33. Rb1
{[%clk 0:01:35.1]} 33... g5 {[%clk 0:00:24.4]} 34. fxg5 {[%clk 0:01:34.8]} 34...
hxg5 {[%clk 0:00:25.3]} 35. Rb7 {[%clk 0:01:32.8]} 35... Ra4 {[%clk 0:00:20.4]}
36. Rb1 {[%clk 0:01:30.3]} 36... e5 {[%clk 0:00:17.2]} 37. f3 {[%clk 0:01:25.1]}
37... Kg6 {[%clk 0:00:15.6]} 38. Kf2 {[%clk 0:01:23.5]} 38... Bf5 {[%clk
0:00:15.8]} 39. Rb2 {[%clk 0:01:23.3]} 39... Ra1 {[%clk 0:00:15.2]} 40. Bc5
{[%clk 0:01:20.4]} 40... Rb1 {[%clk 0:00:15]} 41. Ra2 {[%clk 0:01:02.5]} 41...
Rc1 {[%clk 0:00:14.2]} 42. Ra5 {[%clk 0:01:02.7]} 42... g4 {[%clk 0:00:13]} 43.
fxg4 {[%clk 0:01:01.4]} 43... Bxg4 {[%clk 0:00:13.9]} 44. Be7 {[%clk 0:01:01.1]}
44... Rc6 {[%clk 0:00:10.7]} 45. Kg3 {[%clk 0:00:59.2]} 45... Bf5 {[%clk
0:00:11]} 46. Ra7 {[%clk 0:00:58.8]} 46... Bd3 {[%clk 0:00:10.7]} 47. h4 {[%clk
0:00:57.5]} 47... e4 {[%clk 0:00:11.1]} 48. Kf4 {[%clk 0:00:57.1]} 48... Rc1
{[%clk 0:00:09.3]} 49. Bf8 {[%clk 0:00:49.7]} 49... Rf1+ {[%clk 0:00:09.7]} 50.
Ke3 {[%clk 0:00:45.7]} 50... Rf3+ {[%clk 0:00:10.1]} 51. Kd4 {[%clk 0:00:45.8]}
51... Kh5 {[%clk 0:00:10.5]} 52. Rh7+ {[%clk 0:00:43.7]} 52... Kg6 {[%clk
0:00:10.2]} 53. Rg7+ {[%clk 0:00:43.9]} 53... Kf5 {[%clk 0:00:09.9]} 54. Rh7
{[%clk 0:00:21]} 54... Bb1 {[%clk 0:00:08.9]} 55. h5 {[%clk 0:00:18.7]} 55...
Rh3 {[%clk 0:00:09]} 56. h6 {[%clk 0:00:18.6]} 56... e3 {[%clk 0:00:09.2]} 57.
Re7 {[%clk 0:00:19.4]} 57... Kg6 {[%clk 0:00:05.9]} 58. Bg7 {[%clk 0:00:17]}
58... f5 {[%clk 0:00:03.3]} 59. Re6+ {[%clk 0:00:16.2]} 59... Kh7 {[%clk
0:00:03.8]} 60. Re7 {[%clk 0:00:13.8]} 60... Kg6 {[%clk 0:00:03.7]} 61. Be5
{[%clk 0:00:13.2]} 61... Rxh6 {[%clk 0:00:03.3]} 62. Re6+ {[%clk 0:00:12.4]}
62... Kg5 {[%clk 0:00:03.3]} 63. Re8 {[%clk 0:00:07.1]} 63... Kg4 {[%clk
0:00:03.1]} 64. Kxe3 {[%clk 0:00:05.5]} 64... Rh3+ {[%clk 0:00:02.6]} 65. Kd4
{[%clk 0:00:05.5]} 65... Be4 {[%clk 0:00:03]} 66. Rg8+ {[%clk 0:00:05.4]} 66...
Kf3 {[%clk 0:00:03.7]} 67. Rg5 {[%clk 0:00:05.1]} 67... Ke2 {[%clk 0:00:02.9]}
68. Rg1 {[%clk 0:00:04.7]} 68... Rd3+ {[%clk 0:00:03.3]} 69. Kc4 {[%clk
0:00:05.1]} 69... Rd1 {[%clk 0:00:04.2]} 70. Rg3 {[%clk 0:00:05]} 70... Kf2
{[%clk 0:00:04.2]} 71. Ra3 {[%clk 0:00:05]} 71... Rc1+ {[%clk 0:00:04.7]} 72.
Kd4 {[%clk 0:00:05.3]} 72... Rd1+ {[%clk 0:00:05.5]} 73. Kc5 {[%clk 0:00:05.9]}
73... Rd3 {[%clk 0:00:06.1]} 74. Ra2+ {[%clk 0:00:03.9]} 74... Ke3 {[%clk
0:00:05.7]} 75. Bf6 {[%clk 0:00:02.2]} 75... f4 {[%clk 0:00:06.1]} 76. Rh2
{[%clk 0:00:01]} 76... f3 {[%clk 0:00:06.3]} 77. Bg5# {[%clk 0:00:01]} 1-0

[Event "Early-Titled-Tuesday-Blitz-September-12-2023"]
[Site "Chess.com"]
[Date "2023.09.12"]
[Round "2"]
[White "kushbhagat2009"]
[Black "artooon"]
[Result "0-1"]
[WhiteElo "2639"]
[BlackElo "3054"]
[TimeControl "180+1"]
[EndTime "8:20:03 PDT"]
[Termination "artooon won on time"]

1. d4 {[%clk 0:03:00.9]} 1... d5 {[%clk 0:03:00.1]} 2. Bf4 {[%clk 0:03:00.5]}
2... e6 {[%clk 0:02:59.4]} 3. e3 {[%clk 0:03:01]} 3... Bd6 {[%clk 0:02:59.4]} 4.
Nf3 {[%clk 0:03:01.6]} 4... Ne7 {[%clk 0:03:00]} 5. Bd3 {[%clk 0:03:00]} 5... h6
{[%clk 0:02:58.5]} 6. c3 {[%clk 0:02:59.3]} 6... O-O {[%clk 0:02:59]} 7. Nbd2
{[%clk 0:02:59]} 7... c5 {[%clk 0:02:59]} 8. O-O {[%clk 0:02:58.9]} 8... Nbc6
{[%clk 0:02:59.3]} 9. Bg3 {[%clk 0:02:53.2]} 9... Bxg3 {[%clk 0:02:58]} 10. hxg3
{[%clk 0:02:54.1]} 10... b6 {[%clk 0:02:56.8]} 11. a4 {[%clk 0:02:52.8]} 11...
Bb7 {[%clk 0:02:56.4]} 12. Re1 {[%clk 0:02:52.4]} 12... Rc8 {[%clk 0:02:55.5]}
13. Qe2 {[%clk 0:02:51.1]} 13... Qd6 {[%clk 0:02:54.2]} 14. e4 {[%clk
0:02:41.8]} 14... cxd4 {[%clk 0:02:54.5]} 15. e5 {[%clk 0:02:34.3]} 15... Qb8
{[%clk 0:02:47.1]} 16. Nxd4 {[%clk 0:02:31.8]} 16... Nxd4 {[%clk 0:02:43.7]} 17.
cxd4 {[%clk 0:02:32.7]} 17... Nc6 {[%clk 0:02:44]} 18. Nf3 {[%clk 0:02:28.9]}
18... Nb4 {[%clk 0:02:43.6]} 19. Rac1 {[%clk 0:02:22.9]} 19... Nxd3 {[%clk
0:02:35.3]} 20. Qxd3 {[%clk 0:02:23.8]} 20... Rc7 {[%clk 0:02:35.4]} 21. g4
{[%clk 0:02:00.9]} 21... Rfc8 {[%clk 0:02:28.2]} 22. Rb1 {[%clk 0:01:53.6]}
22... g5 {[%clk 0:01:44.2]} 23. Qe3 {[%clk 0:01:38.6]} 23... Rc2 {[%clk
0:01:20.4]} 24. Nd2 {[%clk 0:01:34.8]} 24... Qc7 {[%clk 0:01:05.6]} 25. f4
{[%clk 0:01:33.3]} 25... Ba6 {[%clk 0:00:59.3]} 26. fxg5 {[%clk 0:01:30.1]}
26... hxg5 {[%clk 0:01:00.2]} 27. Qxg5+ {[%clk 0:01:29.1]} 27... Kf8 {[%clk
0:01:00.8]} 28. Nf3 {[%clk 0:01:18.3]} 28... Qe7 {[%clk 0:00:47.2]} 29. Qh6+
{[%clk 0:01:13.9]} 29... Ke8 {[%clk 0:00:47.7]} 30. Rbc1 {[%clk 0:01:09.6]}
30... Kd7 {[%clk 0:00:45.8]} 31. Rxc2 {[%clk 0:01:04.6]} 31... Rxc2 {[%clk
0:00:46.7]} 32. Rc1 {[%clk 0:01:05]} 32... Rxb2 {[%clk 0:00:47.2]} 33. Qh8
{[%clk 0:01:04.7]} 33... Bc4 {[%clk 0:00:27.1]} 34. Qb8 {[%clk 0:01:02.9]} 34...
a5 {[%clk 0:00:27.1]} 35. g5 {[%clk 0:00:40.5]} 35... Qd8 {[%clk 0:00:26.7]} 36.
Qb7+ {[%clk 0:00:34.2]} 36... Qc7 {[%clk 0:00:27]} 37. Qa8 {[%clk 0:00:33.7]}
37... Qc8 {[%clk 0:00:27.6]} 38. Qa7+ {[%clk 0:00:33.1]} 38... Qc7 {[%clk
0:00:27.8]} 39. Qa8 {[%clk 0:00:32.5]} 39... Qd8 {[%clk 0:00:22.2]} 40. Qb7+
{[%clk 0:00:32.5]} 40... Ke8 {[%clk 0:00:19.2]} 41. g6 {[%clk 0:00:33]} 41...
fxg6 {[%clk 0:00:19.6]} 42. Qg7 {[%clk 0:00:33.6]} 42... Qe7 {[%clk 0:00:19.3]}
43. Qxg6+ {[%clk 0:00:33.8]} 43... Qf7 {[%clk 0:00:19.6]} 44. Qh6 {[%clk
0:00:29.4]} 44... Kd7 {[%clk 0:00:17.1]} 45. Qf6 {[%clk 0:00:27.1]} 45... Qg8
{[%clk 0:00:13.1]} 46. Ng5 {[%clk 0:00:25.7]} 46... Rb3 {[%clk 0:00:03.8]} 47.
Rc2 {[%clk 0:00:22.7]} 47... Rg3 {[%clk 0:00:03.9]} 48. Qf7+ {[%clk 0:00:10.6]}
48... Qxf7 {[%clk 0:00:04.1]} 49. Nxf7 {[%clk 0:00:11.5]} 49... b5 {[%clk
0:00:04.4]} 50. axb5 {[%clk 0:00:11.6]} 50... a4 {[%clk 0:00:04.8]} 51. Nd6
{[%clk 0:00:11.6]} 51... Bb3 {[%clk 0:00:04]} 52. Rc1 {[%clk 0:00:11.1]} 52...
Rd3 {[%clk 0:00:03.9]} 53. b6 {[%clk 0:00:11.3]} 53... Rxd4 {[%clk 0:00:04.6]}
54. b7 {[%clk 0:00:10.6]} 54... Rb4 {[%clk 0:00:05.2]} 55. Rc8 {[%clk
0:00:11.2]} 55... Rxb7 {[%clk 0:00:05]} 56. Rh8 {[%clk 0:00:05.1]} 56... Rc7
{[%clk 0:00:03.7]} 57. Rh7+ {[%clk 0:00:05.3]} 57... Kc6 {[%clk 0:00:04.4]} 58.
Rh8 {[%clk 0:00:05.7]} 58... d4 {[%clk 0:00:04.2]} 59. Kf2 {[%clk 0:00:05.4]}
59... Ra7 {[%clk 0:00:04.7]} 60. Rc8+ {[%clk 0:00:04.9]} 60... Kd5 {[%clk
0:00:05]} 61. Ke2 {[%clk 0:00:05.6]} 61... a3 {[%clk 0:00:05.4]} 62. Rc1 {[%clk
0:00:05.7]} 62... Kxe5 {[%clk 0:00:05.3]} 63. Nb5 {[%clk 0:00:05.5]} 63... Rg7
{[%clk 0:00:06]} 64. Nxa3 {[%clk 0:00:04.2]} 64... Rxg2+ {[%clk 0:00:05.6]} 65.
Kf1 {[%clk 0:00:04]} 65... Rh2 {[%clk 0:00:05]} 66. Kg1 {[%clk 0:00:03.7]} 66...
Ra2 {[%clk 0:00:05.4]} 67. Nb5 {[%clk 0:00:03.7]} 67... Kd5 {[%clk 0:00:03.3]}
68. Re1 {[%clk 0:00:01.9]} 68... e5 {[%clk 0:00:03.7]} 69. Nc7+ {[%clk
0:00:02.6]} 69... Kd6 {[%clk 0:00:04.3]} 70. Ne8+ {[%clk 0:00:03.2]} 70... Kd5
{[%clk 0:00:04.4]} 71. Nc7+ {[%clk 0:00:03.6]} 71... Kc6 {[%clk 0:00:04.6]} 72.
Ne8 {[%clk 0:00:01.9]} 72... d3 {[%clk 0:00:05]} 73. Rxe5 {[%clk 0:00:01.4]}
73... d2 {[%clk 0:00:05.6]} 0-1

[Event "Early-Titled-Tuesday-Blitz-September-12-2023"]
[Site "Chess.com"]
[Date "2023.09.12"]
[Round "2"]
[White "econpower"]
[Black "vladoboch"]
[Result "1-0"]
[WhiteElo "2738"]
[BlackElo "2419"]
[TimeControl "180+1"]
[EndTime "8:20:11 PDT"]
[Termination "econpower won by resignation"]

1. d4 {[%clk 0:03:00.9]} 1... Nf6 {[%clk 0:02:59.6]} 2. Nf3 {[%clk 0:03:00.8]}
2... e6 {[%clk 0:02:57.7]} 3. c4 {[%clk 0:03:00.7]} 3... c5 {[%clk 0:02:55.8]}
4. d5 {[%clk 0:03:00.6]} 4... exd5 {[%clk 0:02:56.1]} 5. cxd5 {[%clk 0:03:00.5]}
5... d6 {[%clk 0:02:56.8]} 6. g3 {[%clk 0:03:01.1]} 6... g6 {[%clk 0:02:57]} 7.
Bg2 {[%clk 0:03:01.6]} 7... Bg7 {[%clk 0:02:57.7]} 8. O-O {[%clk 0:03:02.3]}
8... O-O {[%clk 0:02:57.8]} 9. a4 {[%clk 0:03:03]} 9... Na6 {[%clk 0:02:55.3]}
10. Nfd2 {[%clk 0:03:02.5]} 10... Nb4 {[%clk 0:02:51.2]} 11. Nc4 {[%clk
0:03:01.5]} 11... Re8 {[%clk 0:02:36.9]} 12. Bf4 {[%clk 0:02:56.7]} 12... Ne4
{[%clk 0:02:24.6]} 13. Nbd2 {[%clk 0:02:52.3]} 13... Bf5 {[%clk 0:01:44.8]} 14.
Nb3 {[%clk 0:02:39.1]} 14... a6 {[%clk 0:01:30.9]} 15. f3 {[%clk 0:02:36.8]}
15... b5 {[%clk 0:01:23.6]} 16. axb5 {[%clk 0:01:13.4]} 16... axb5 {[%clk
0:01:23.6]} 17. Rxa8 {[%clk 0:01:14.3]} 17... Qxa8 {[%clk 0:01:23.8]} 18. Nb6
{[%clk 0:01:15.2]} 18... Qb7 {[%clk 0:01:11.8]} 19. fxe4 {[%clk 0:01:16.1]}
19... Bxe4 {[%clk 0:01:01.2]} 20. Bxd6 {[%clk 0:01:01.8]} 20... Bxg2 {[%clk
0:00:46.6]} 21. Kxg2 {[%clk 0:01:01.7]} 21... Qxb6 {[%clk 0:00:16]} 22. Bxc5
{[%clk 0:01:01.4]} 22... Qc7 {[%clk 0:00:11.4]} 23. Bxb4 {[%clk 0:01:01]} 23...
Qc4 {[%clk 0:00:11.9]} 24. Be1 {[%clk 0:00:34.8]} 24... Qe4+ {[%clk 0:00:11.7]}
25. Kg1 {[%clk 0:00:34.8]} 25... Bh6 {[%clk 0:00:11.4]} 26. Bf2 {[%clk 0:00:35]}
26... Rd8 {[%clk 0:00:06]} 27. d6 {[%clk 0:00:34.4]} 27... Qe6 {[%clk
0:00:05.6]} 28. Nc5 {[%clk 0:00:27.8]} 28... Qe5 {[%clk 0:00:02.9]} 29. Qd3
{[%clk 0:00:25.8]} 29... Rxd6 {[%clk 0:00:02.8]} 30. Qc3 {[%clk 0:00:23.9]}
30... Qd5 {[%clk 0:00:02.2]} 31. e4 {[%clk 0:00:23.4]} 31... Qc6 {[%clk
0:00:02.2]} 32. b4 {[%clk 0:00:22.5]} 32... Bg7 {[%clk 0:00:02.7]} 33. Qf3
{[%clk 0:00:22.2]} 33... Qa8 {[%clk 0:00:02.6]} 34. Be3 {[%clk 0:00:22]} 34...
Qe8 {[%clk 0:00:02.7]} 35. Bf2 {[%clk 0:00:21.1]} 35... Rf6 {[%clk 0:00:03.1]}
36. Qd3 {[%clk 0:00:21]} 36... Re6 {[%clk 0:00:03.3]} 37. Rd1 {[%clk 0:00:20.7]}
37... Re7 {[%clk 0:00:03.4]} 38. Qd8 {[%clk 0:00:20.7]} 38... h5 {[%clk
0:00:02.6]} 39. Qxe8+ {[%clk 0:00:20.6]} 39... Rxe8 {[%clk 0:00:03.5]} 40. Rd7
{[%clk 0:00:20.3]} 40... Bc3 {[%clk 0:00:04]} 41. Nd3 {[%clk 0:00:20.1]} 41...
Rxe4 {[%clk 0:00:03.7]} 42. Rd5 {[%clk 0:00:18.1]} 42... Bxb4 {[%clk 0:00:04]}
43. Bd4 {[%clk 0:00:17.2]} 43... Bf8 {[%clk 0:00:02.4]} 44. Rd8 {[%clk
0:00:15.7]} 44... f6 {[%clk 0:00:01.6]} 45. Bc5 {[%clk 0:00:15.5]} 45... Kf7
{[%clk 0:00:01.9]} 46. Rxf8+ {[%clk 0:00:15.6]} 46... Ke6 {[%clk 0:00:02.8]} 47.
Rd8 {[%clk 0:00:15.3]} 47... Kf5 {[%clk 0:00:03.3]} 48. Kf2 {[%clk 0:00:15.6]}
48... Rc4 {[%clk 0:00:03.2]} 49. Rd4 {[%clk 0:00:14.6]} 49... Rc2+ {[%clk
0:00:03.8]} 50. Kf3 {[%clk 0:00:15.1]} 50... Rxh2 {[%clk 0:00:04.4]} 51. Rd5+
{[%clk 0:00:15.5]} 51... Ke6 {[%clk 0:00:04.6]} 52. Rd6+ {[%clk 0:00:15.4]}
52... Kf7 {[%clk 0:00:04.7]} 53. Bf2 {[%clk 0:00:15.6]} 53... g5 {[%clk
0:00:05.3]} 54. Ne1 {[%clk 0:00:15.4]} 54... h4 {[%clk 0:00:05.8]} 55. gxh4
{[%clk 0:00:15.6]} 55... gxh4 {[%clk 0:00:05.8]} 56. Rd4 {[%clk 0:00:16.5]}
56... Rh3+ {[%clk 0:00:06.1]} 57. Kg2 {[%clk 0:00:16.7]} 57... Rb3 {[%clk
0:00:06.3]} 58. Rxh4 {[%clk 0:00:17.3]} 58... Ke6 {[%clk 0:00:06.9]} 59. Rh5
{[%clk 0:00:17.5]} 59... b4 {[%clk 0:00:07.5]} 60. Rb5 {[%clk 0:00:17.6]} 60...
Rb2 {[%clk 0:00:07.8]} 61. Nd3 {[%clk 0:00:18]} 61... Rd2 {[%clk 0:00:07.9]} 62.
Nxb4 {[%clk 0:00:18.3]} 62... Rb2 {[%clk 0:00:07.5]} 63. Rb6+ {[%clk 0:00:18.5]}
63... Kf5 {[%clk 0:00:07.6]} 64. Kf3 {[%clk 0:00:17.6]} 64... Rb3+ {[%clk
0:00:07.7]} 65. Be3 {[%clk 0:00:18.2]} 65... Rb1 {[%clk 0:00:08.1]} 66. Bd2
{[%clk 0:00:18.1]} 66... Rf1+ {[%clk 0:00:08.2]} 67. Ke2 {[%clk 0:00:18.6]}
67... Rh1 {[%clk 0:00:08.7]} 68. Rc6 {[%clk 0:00:19.5]} 68... Rh2+ {[%clk
0:00:09]} 69. Kd3 {[%clk 0:00:19.7]} 69... Rh4 {[%clk 0:00:09.7]} 70. Ke2 {[%clk
0:00:19.5]} 70... Rh2+ {[%clk 0:00:10]} 71. Kd3 {[%clk 0:00:19.7]} 71... Rh3+
{[%clk 0:00:10.9]} 72. Be3 {[%clk 0:00:20.1]} 72... Rh4 {[%clk 0:00:11.5]} 73.
Rc5+ {[%clk 0:00:20.7]} 73... Kg6 {[%clk 0:00:11.7]} 74. Nc2 {[%clk 0:00:21.3]}
74... Rh3 {[%clk 0:00:11.8]} 75. Nd4 {[%clk 0:00:21.9]} 75... Rh1 {[%clk
0:00:11.6]} 76. Rc6 {[%clk 0:00:22.5]} 76... Rd1+ {[%clk 0:00:11.8]} 77. Ke4
{[%clk 0:00:23.1]} 77... Rf1 {[%clk 0:00:12.2]} 78. Ne2 {[%clk 0:00:23.4]} 78...
Re1 {[%clk 0:00:12.5]} 79. Nf4+ {[%clk 0:00:23.7]} 79... Kf7 {[%clk 0:00:12]}
80. Kf3 {[%clk 0:00:24.1]} 80... Rf1+ {[%clk 0:00:11.6]} 81. Kg4 {[%clk
0:00:24.3]} 81... Re1 {[%clk 0:00:11.3]} 82. Bd4 {[%clk 0:00:24.6]} 82... Ke7
{[%clk 0:00:10.8]} 83. Bxf6+ {[%clk 0:00:23.6]} 83... Kd7 {[%clk 0:00:11.2]} 84.
Rc4 {[%clk 0:00:23.8]} 84... Rg1+ {[%clk 0:00:11.2]} 85. Kf5 {[%clk 0:00:24.1]}
85... Rf1 {[%clk 0:00:11.7]} 86. Rd4+ {[%clk 0:00:24.4]} 86... Kc7 {[%clk
0:00:11.8]} 87. Be5+ {[%clk 0:00:24.8]} 87... Kc6 {[%clk 0:00:12.3]} 88. Ke6
{[%clk 0:00:25.1]} 88... Ra1 {[%clk 0:00:11.8]} 89. Rd6+ {[%clk 0:00:25.5]}
89... Kc5 {[%clk 0:00:12]} 90. Nd5 {[%clk 0:00:25.6]} 90... Re1 {[%clk
0:00:11.4]} 91. Ne7 {[%clk 0:00:24.8]} 91... Kc4 {[%clk 0:00:09.1]} 92. Rc6+
{[%clk 0:00:25.2]} 92... Kb5 {[%clk 0:00:09.1]} 93. Rc8 {[%clk 0:00:24.2]} 93...
Rd1 {[%clk 0:00:08]} 94. Nf5 {[%clk 0:00:24.6]} 94... Rd2 {[%clk 0:00:08]} 95.
Nd4+ {[%clk 0:00:25]} 95... Kb4 {[%clk 0:00:07.1]} 96. Kd5 {[%clk 0:00:25.6]}
96... Rd1 {[%clk 0:00:06.7]} 97. Bd6+ {[%clk 0:00:26.1]} 97... Ka4 {[%clk
0:00:05.7]} 98. Rb8 {[%clk 0:00:26.1]} 98... Ka5 {[%clk 0:00:05.2]} 99. Bc5
{[%clk 0:00:26.2]} 99... Ka6 {[%clk 0:00:05.4]} 100. Rb6+ {[%clk 0:00:26.2]}
100... Ka7 {[%clk 0:00:05.5]} 101. Rb1+ {[%clk 0:00:26]} 1-0